fUST/lending_fUST_20250626
["ID","MTS","AMOUNT","RATE_DAILY","PERIOD"]
[367769088,1750924243416,-500.0,0.00019898,2]
[367769090,1750924243426,-500.0,0.00019898,2]
[367769092,1750924243435,-582.22008213,0.00019898,2]
[367769094,1750924243444,-500.0,0.00019898,2]
[367769096,1750924243453,-500.0,0.00019898,2]
[367769098,1750924243463,-500.0,0.00019898,2]
[367769100,1750924243473,-500.0,0.00019898,2]
[367769102,1750924243482,-500.0,0.00019898,2]
[367769104,1750924243492,-500.0,0.00019898,2]
[367769107,1750924243502,-500.0,0.00019898,2]
[367769109,1750924243511,-500.0,0.00019898,2]
[367769111,1750924243520,-500.0,0.00019898,2]
[367769114,1750924243531,-500.0,0.00019898,2]
[367769115,1750924243541,-500.0,0.00019898,2]
[367769117,1750924243551,-500.0,0.00019898,2]
[367769120,1750924243560,-500.0,0.00019898,2]
[367769121,1750924243570,-500.0,0.00019898,2]
[367769123,1750924243580,-616.25422118,0.00019898,2]
[367769125,1750924243590,-500.0,0.00019898,2]
[367769129,1750924243599,-151.0,0.00019899,2]
[367769131,1750924243609,-153.549986,0.00019899,2]
[367769134,1750924243618,-151.0,0.00019899,2]
[367769136,1750924243629,-151.0,0.00019899,2]
[367769139,1750924243638,-288.461738,0.00019899,2]
[367769141,1750924243647,-288.461738,0.00019899,2]
[367769143,1750924243657,-151.0,0.00019899,2]
[367769145,1750924243666,-151.0,0.00019899,2]
[367769147,1750924243675,-151.0,0.00019899,2]
[367769149,1750924243684,-151.0,0.00019899,2]
[367769151,1750924243693,-151.0,0.00019899,2]
[367769153,1750924243702,-151.0,0.00019899,2]
[367769155,1750924243711,-151.0,0.00019899,2]
[367769157,1750924243720,-151.0,0.00019899,2]
[367769159,1750924243729,-151.0,0.00019899,2]
[367769160,1750924243738,-164.643916,0.00019899,2]
[367769162,1750924243747,-200.37843636,0.00019899,2]
[367769164,1750924243756,-155.316714,0.00019899,2]
[367769166,1750924243765,-155.316724,0.00019899,2]
[367769168,1750924243774,-151.0,0.00019899,2]
[367769170,1750924243783,-283.659189,0.00019899,2]
[367769172,1750924243792,-283.65919,0.00019899,2]
[367769174,1750924243801,-151.0,0.00019899,2]
[367769176,1750924243810,-281.580233,0.00019899,2]
[367769178,1750924243820,-500.0,0.00019899,2]
[367769180,1750924243828,-293.55034862,0.00019899,2]
[367769182,1750924243836,-500.0,0.00019899,2]
[367769184,1750924243845,-783.90688309,0.00019899,2]
[367769186,1750924243854,-783.90688309,0.00019899,2]
[367769188,1750924243863,-783.90688309,0.00019899,2]
[367769189,1750924243871,-783.90688309,0.00019899,2]
[367769191,1750924243880,-371.50464324,0.00019899,2]
[367769193,1750924243890,-783.90688309,0.00019899,2]
[367769195,1750924243899,-783.90688309,0.00019899,2]
[367769197,1750924243908,-500.0,0.00019899,2]
[367769199,1750924243917,-783.90688309,0.00019899,2]
[367769201,1750924243926,-500.0,0.00019899,2]
[367769203,1750924243935,-783.90688309,0.00019899,2]
[367769205,1750924243944,-783.90688309,0.00019899,2]
[367769207,1750924243953,-783.90688309,0.00019899,2]
[367769209,1750924243963,-783.90688309,0.00019899,2]
[367769211,1750924243972,-783.90688309,0.00019899,2]
[367769213,1750924243982,-783.90688309,0.00019899,2]
[367769215,1750924243991,-783.90688309,0.00019899,2]
[367769217,1750924244000,-104343.93619129,0.000199,7]
[367769240,1750924244219,-293.00176164,0.00017666,2]
[367769439,1750924246283,-166.99823836,0.00017666,2]
[367769440,1750924246293,-1403.97,0.00017666,2]
[367769441,1750924246302,-909.45,0.00017666,2]
[367769442,1750924246311,-460.0,0.00017666,2]
[367769443,1750924246321,-2426.79,0.00017666,2]
[367769444,1750924246330,-460.0,0.0001794,2]
[367769445,1750924246339,-1403.97,0.0001794,2]
[367769446,1750924246348,-909.45,0.0001794,2]
[367769447,1750924246358,-460.0,0.0001794,2]
[367769448,1750924246368,-460.0,0.00018033,2]
[367769449,1750924246377,-460.0,0.00018033,2]
[367769450,1750924246387,-361.26,0.00018033,2]
[367769451,1750924246396,-460.0,0.00018213,2]
[367769452,1750924246405,-1403.97,0.00018213,2]
[367769453,1750924246414,-909.45,0.00018213,2]
[367769454,1750924246423,-460.0,0.00018213,2]
[367769455,1750924246433,-460.0,0.00018307,2]
[367769456,1750924246442,-460.0,0.00018307,2]
[367769457,1750924246451,-435.4800075,0.00018487,2]
[367769458,1750924246460,-1403.97,0.00018487,2]
[367769459,1750924246469,-909.45,0.00018487,2]
[367769460,1750924246479,-460.0,0.00018581,2]
[367769461,1750924246488,-460.0,0.00018581,2]
[367769462,1750924246498,-1403.97,0.00018761,2]
[367769464,1750924246507,-909.45,0.00018761,2]
[367769465,1750924246517,-460.0,0.00018855,2]
[367769467,1750924246527,-460.0,0.00018855,2]
[367769469,1750924246537,-1403.97,0.00019035,2]
[367769471,1750924246546,-909.45,0.00019035,2]
[367769473,1750924246556,-460.0,0.00019129,2]
[367769475,1750924246566,-460.0,0.00019129,2]
[367769489,1750924246697,-1403.97,0.00019309,2]
[367769491,1750924246707,-88657.65051249,0.00019329,2]
[367769494,1750924246718,-460.0,0.00019403,2]
[367769496,1750924246727,-1403.97,0.00019583,2]
[367769498,1750924246736,-460.0,0.00019676,2]
[367769500,1750924246745,-1403.97,0.00019857,2]
[367769501,1750924246755,-500.0,0.00019898,2]
[367769503,1750924246764,-428.69973933,0.00019898,2]
[367769506,1750924246774,-277.3977447,0.00019899,2]
[367769507,1750924246783,-320467.96343584,0.000199,7]
[367769510,1750924246795,-358.67756771,0.000199,7]
[367769512,1750924246807,-878.22638352,0.000199,7]
[367769514,1750924246819,-10805.82651073,0.000199,7]
[367770662,1750924287804,177.52,0.00021908,120]
[367770663,1750924559708,222.670489,0.00013699,2]
[367770665,1750924831718,200.0,0.00023144,120]
[367770666,1750924891898,200.0,0.00023251,120]
[367770667,1750925011865,200.0,0.00023116,120]
[367770668,1750925017912,-160.00728996,0.00016969,2]
[367770669,1750925017934,-300.0,0.00017067,2]
[367770670,1750925017956,-460.0,0.00017068,2]
[367770671,1750925017977,-275.27516672,0.00017068,2]
[367770672,1750925017998,-460.0,0.00017068,2]
[367770673,1750925018019,-460.0,0.00017068,2]
[367770674,1750925018040,-460.0,0.00017068,2]
[367770675,1750925018061,-460.0,0.00017068,2]
[367770676,1750925018082,-460.0,0.00017068,2]
[367770677,1750925018104,-310.8355033,0.00017069,2]
[367770678,1750925018126,-407.30030346,0.00017069,2]
[367770679,1750925018146,-460.0,0.00017069,2]
[367770680,1750925018167,-284.95357821,0.00017069,2]
[367770681,1750925018189,-460.0,0.00017069,2]
[367770682,1750925018212,-460.0,0.00017069,2]
[367770683,1750925018237,-460.0,0.00017069,2]
[367770684,1750925018259,-460.0,0.00017069,2]
[367770685,1750925018281,-460.0,0.00017069,2]
[367770686,1750925018305,-2266.53,0.00017069,2]
[367770687,1750925018330,-2439.32,0.00017069,2]
[367770688,1750925018351,-460.0,0.00017069,2]
[367770689,1750925018373,-460.0,0.00017069,2]
[367770690,1750925018396,-115.77815835,0.00017069,2]
[367770691,1750925071831,200.0,0.00021861,120]
[367770692,1750925390023,24900.0,0.0001609,2]
[367770798,1750925438943,-460.0,0.00017067,2]
[367770800,1750925438955,-460.0,0.00017067,2]
[367770802,1750925438967,-300.0,0.00017067,2]
[367770803,1750925438978,-460.0,0.00017067,2]
[367770804,1750925438989,-460.0,0.00017068,2]
[367770805,1750925439001,-460.0,0.00017068,2]
[367770806,1750925439012,-460.0,0.00017068,2]
[367770807,1750925439024,-460.0,0.00017068,2]
[367770808,1750925439035,-460.0,0.00017068,2]
[367770809,1750925439046,-525.31220112,0.00017068,2]
[367770810,1750925439058,-201.07813599,0.00017068,2]
[367770811,1750925439069,-460.0,0.00017068,2]
[367770812,1750925439080,-460.0,0.00017068,2]
[367770813,1750925439091,-460.0,0.00017068,2]
[367770814,1750925439103,-460.0,0.00017068,2]
[367770815,1750925439114,-266.42815938,0.00017068,2]
[367770816,1750925439175,-1300.75184062,0.00017068,2]
[367770817,1750925439189,-502.38341229,0.00017068,2]
[367770818,1750925439200,-460.0,0.00017068,2]
[367770819,1750925439211,-460.0,0.00017068,2]
[367770820,1750925439220,-460.0,0.00017068,2]
[367770821,1750925439230,-1663.9,0.00017068,2]
[367770822,1750925439239,-460.0,0.00017068,2]
[367770823,1750925439249,-460.0,0.00017068,2]
[367770824,1750925439258,-460.0,0.00017068,2]
[367770825,1750925439470,-460.0,0.00017068,2]
[367770826,1750925439494,-460.0,0.00017068,2]
[367770827,1750925439504,-460.0,0.00017068,2]
[367770828,1750925439514,-460.0,0.00017068,2]
[367770829,1750925439523,-460.0,0.00017068,2]
[367770830,1750925439532,-313.64,0.00017068,2]
[367770831,1750925439541,-2281.82,0.00017068,2]
[367770832,1750925439551,-460.0,0.00017068,2]
[367770833,1750925439560,-460.0,0.00017068,2]
[367770834,1750925439569,-2424.32,0.00017068,2]
[367770835,1750925439579,-2935.28,0.00017068,2]
[367770836,1750925439589,-460.0,0.00017068,2]
[367770837,1750925439600,-460.0,0.00017068,2]
[367770838,1750925439609,-463.56566615,0.00017068,2]
[367770839,1750925439619,-460.0,0.00017068,2]
[367770840,1750925439628,-460.0,0.00017068,2]
[367770841,1750925439637,-1502.2,0.00017068,2]
[367770842,1750925439647,-460.0,0.00017068,2]
[367770843,1750925439656,-460.0,0.00017068,2]
[367770844,1750925439666,-460.0,0.00017068,2]
[367770845,1750925439675,-953.08,0.00017068,2]
[367770846,1750925439685,-460.0,0.00017068,2]
[367770847,1750925439694,-460.0,0.00017068,2]
[367770848,1750925439704,-460.0,0.00017068,2]
[367770849,1750925439713,-460.0,0.00017068,2]
[367770850,1750925439723,-740.56,0.00017068,2]
[367770851,1750925439732,-460.0,0.00017068,2]
[367770852,1750925439742,-460.0,0.00017068,2]
[367770853,1750925439751,-484.03,0.00017068,2]
[367770854,1750925439762,-460.0,0.00017068,2]
[367770855,1750925439771,-460.0,0.00017069,2]
[367770856,1750925439781,-460.0,0.00017069,2]
[367770857,1750925439790,-460.0,0.00017069,2]
[367770858,1750925439799,-460.0,0.00017069,2]
[367770859,1750925439809,-460.0,0.00017069,2]
[367770860,1750925439819,-460.0,0.00017069,2]
[367770861,1750925439828,-386.19172521,0.00017069,2]
[367770862,1750925439838,-460.0,0.00017069,2]
[367770863,1750925439847,-460.0,0.00017069,2]
[367770864,1750925439858,-460.0,0.00017069,2]
[367770865,1750925439867,-460.0,0.00017069,2]
[367770866,1750925439876,-500.0,0.00017069,2]
[367770867,1750925439886,-460.0,0.00017069,2]
[367770868,1750925439896,-460.0,0.00017069,2]
[367770869,1750925439905,-460.0,0.00017069,2]
[367770870,1750925439914,-460.0,0.00017069,2]
[367770871,1750925439923,-460.0,0.00017069,2]
[367770872,1750925439932,-460.0,0.00017069,2]
[367770873,1750925439941,-460.0,0.00017069,2]
[367770874,1750925439951,-460.0,0.00017069,2]
[367770875,1750925439960,-460.0,0.00017069,2]
[367770876,1750925439969,-460.0,0.00017069,2]
[367770877,1750925439978,-460.0,0.00017069,2]
[367770878,1750925439988,-460.0,0.00017069,2]
[367770879,1750925439997,-460.0,0.00017069,2]
[367770880,1750925440007,-460.0,0.00017069,2]
[367770881,1750925440016,-460.0,0.00017069,2]
[367770882,1750925440025,-460.0,0.00017069,2]
[367770883,1750925440034,-460.0,0.00017069,2]
[367770884,1750925440044,-460.0,0.00017069,2]
[367770885,1750925440053,-460.0,0.00017069,2]
[367770886,1750925440062,-460.0,0.00017069,2]
[367770887,1750925440072,-497.59,0.00017069,2]
[367770888,1750925440081,-460.0,0.00017069,2]
[367770889,1750925440091,-460.0,0.00017069,2]
[367770890,1750925440100,-460.0,0.00017069,2]
[367770891,1750925440109,-535.75,0.00017069,2]
[367770892,1750925440119,-460.0,0.00017069,2]
[367770893,1750925440128,-507.91,0.00017069,2]
[367770894,1750925440138,-659.25,0.00017069,2]
[367770895,1750925440147,-460.0,0.00017069,2]
[367770896,1750925440158,-151.0550023,0.00017069,2]
[367770897,1750925440167,-151.03776761,0.00017069,2]
[367770898,1750925440176,-247.62029365,0.00017069,2]
[367770899,1750925440186,-460.0,0.00017069,2]
[367770900,1750925440195,-460.0,0.00017069,2]
[367770901,1750925440205,-460.0,0.00017069,2]
[367770903,1750925440215,-960.97,0.00017069,2]
[367770904,1750925440225,-452.58,0.00017069,2]
[367770905,1750925440235,-460.0,0.00017069,2]
[367770907,1750925440244,-460.0,0.00017069,2]
[367770909,1750925440253,-460.0,0.00017069,2]
[367770911,1750925440263,-460.0,0.00017069,2]
[367770913,1750925440272,-460.0,0.00017069,2]
[367770915,1750925440280,-460.0,0.00017069,2]
[367770917,1750925440290,-460.0,0.00017069,2]
[367770919,1750925440299,-460.0,0.00017069,2]
[367770921,1750925440308,-460.0,0.00017069,2]
[367770923,1750925440317,-460.0,0.00017069,2]
[367770925,1750925440327,-460.0,0.00017069,2]
[367770927,1750925440336,-1527.0,0.00017069,2]
[367770929,1750925440346,-460.0,0.00017069,2]
[367770931,1750925440356,-460.0,0.00017069,2]
[367770933,1750925440365,-155.97576151,0.00017069,2]
[367770935,1750925440374,-151.0,0.00017069,2]
[367770937,1750925440384,-151.0,0.00017069,2]
[367770939,1750925440393,-151.0,0.00017069,2]
[367770941,1750925440405,-151.0,0.00017069,2]
[367770943,1750925440414,-151.00208844,0.00017069,2]
[367770945,1750925440423,-478.43,0.00017069,2]
[367770947,1750925440433,-460.0,0.00017069,2]
[367770949,1750925440442,-460.0,0.00017069,2]
[367770951,1750925440453,-2507.37,0.00017069,2]
[367770953,1750925440462,-460.0,0.00017069,2]
[367770954,1750925440471,-827.13,0.00017069,2]
[367770956,1750925440481,-460.0,0.00017069,2]
[367770958,1750925440491,-460.0,0.00017069,2]
[367770960,1750925440501,-1311.52,0.00017069,2]
[367770961,1750925440509,-460.0,0.00017069,2]
[367770962,1750925440519,-781.34,0.00017069,2]
[367770963,1750925440528,-1527.0,0.00017096,2]
[367770964,1750925440537,-152.27517289,0.00017096,2]
[367770965,1750925440546,-1527.0,0.00017124,2]
[367770966,1750925440556,-1527.0,0.00017151,2]
[367770967,1750925440565,-1527.0,0.00017179,2]
[367770968,1750925440575,-1527.0,0.00017206,2]
[367770969,1750925440584,-1527.0,0.00017233,2]
[367770970,1750925440593,-558.08462952,0.00017243,2]
[367770971,1750925440602,-1527.0,0.00017261,2]
[367770972,1750925440612,-1527.0,0.00017288,2]
[367770973,1750925440622,-1527.0,0.00017316,2]
[367770974,1750925440631,-258.3,0.00017333,3]
[367770975,1750925440640,-774.95,0.00017333,3]
[367770976,1750925440649,-460.0,0.00017341,2]
[367770977,1750925440659,-460.0,0.00017341,2]
[367770978,1750925440668,-460.0,0.00017341,2]
[367770979,1750925440677,-460.0,0.00017342,2]
[367770980,1750925440686,-468.0570741,0.00017342,2]
[367770981,1750925440696,-460.0,0.00017342,2]
[367770982,1750925440705,-460.0,0.00017342,2]
[367770983,1750925440714,-460.0,0.00017342,2]
[367770984,1750925440723,-460.0,0.00017342,2]
[367770985,1750925440732,-460.0,0.00017342,2]
[367770986,1750925440742,-460.0,0.00017342,2]
[367770987,1750925440751,-460.0,0.00017342,2]
[367770989,1750925440761,-460.0,0.00017342,2]
[367770990,1750925440771,-460.0,0.00017342,2]
[367770992,1750925440780,-501.83076462,0.00017342,2]
[367770994,1750925440789,-460.0,0.00017342,2]
[367770996,1750925440802,-460.0,0.00017342,2]
[367770998,1750925440811,-460.0,0.00017342,2]
[367771000,1750925440821,-1567.18,0.00017342,2]
[367771002,1750925440830,-460.0,0.00017342,2]
[367771004,1750925440839,-460.0,0.00017342,2]
[367771006,1750925440849,-1663.9,0.00017342,2]
[367771008,1750925440858,-460.0,0.00017342,2]
[367771010,1750925440868,-460.0,0.00017342,2]
[367771012,1750925440877,-460.0,0.00017342,2]
[367771014,1750925440887,-460.0,0.00017342,2]
[367771016,1750925440896,-460.0,0.00017342,2]
[367771018,1750925440907,-460.0,0.00017342,2]
[367771020,1750925440916,-460.0,0.00017342,2]
[367771022,1750925440925,-460.0,0.00017342,2]
[367771024,1750925440934,-2281.82,0.00017342,2]
[367771026,1750925440944,-460.0,0.00017342,2]
[367771028,1750925440954,-460.0,0.00017342,2]
[367771030,1750925440963,-2424.32,0.00017342,2]
[367771032,1750925440973,-2935.28,0.00017342,2]
[367771033,1750925440982,-460.0,0.00017342,2]
[367771035,1750925440991,-460.0,0.00017342,2]
[367771037,1750925441000,-292.70064043,0.00017342,2]
[367771039,1750925441009,-460.0,0.00017342,2]
[367771041,1750925441019,-1502.2,0.00017342,2]
[367771043,1750925441028,-460.0,0.00017342,2]
[367771045,1750925441037,-460.0,0.00017342,2]
[367771047,1750925441047,-460.0,0.00017342,2]
[367771049,1750925441056,-953.08,0.00017342,2]
[367771051,1750925441066,-460.0,0.00017342,2]
[367771053,1750925441075,-460.0,0.00017342,2]
[367771055,1750925441084,-460.0,0.00017342,2]
[367771057,1750925441094,-460.0,0.00017342,2]
[367771059,1750925441103,-740.56,0.00017342,2]
[367771061,1750925441113,-460.0,0.00017342,2]
[367771063,1750925441122,-460.0,0.00017342,2]
[367771065,1750925441132,-484.03,0.00017342,2]
[367771067,1750925441141,-1527.0,0.00017343,2]
[367771069,1750925441151,-460.0,0.00017343,2]
[367771071,1750925441160,-460.0,0.00017343,2]
[367771073,1750925441170,-460.0,0.00017343,2]
[367771075,1750925441180,-525.6333627,0.00017343,2]
[367771077,1750925441189,-460.0,0.00017343,2]
[367771079,1750925441199,-460.0,0.00017343,2]
[367771081,1750925441208,-460.0,0.00017343,2]
[367771083,1750925441218,-460.0,0.00017343,2]
[367771085,1750925441227,-460.0,0.00017343,2]
[367771087,1750925441236,-340.42365177,0.00017343,2]
[367771089,1750925441246,-460.0,0.00017343,2]
[367771091,1750925441255,-460.0,0.00017343,2]
[367771093,1750925441265,-460.0,0.00017343,2]
[367771095,1750925441274,-365.06912106,0.00017343,2]
[367771097,1750925441283,-460.0,0.00017343,2]
[367771099,1750925441292,-473.88525235,0.00017343,2]
[367771101,1750925441302,-460.0,0.00017343,2]
[367771103,1750925441311,-460.0,0.00017343,2]
[367771105,1750925441320,-460.0,0.00017343,2]
[367771107,1750925441330,-460.0,0.00017343,2]
[367771109,1750925441339,-460.0,0.00017343,2]
[367771111,1750925441348,-460.0,0.00017343,2]
[367771113,1750925441358,-151.0,0.00017343,2]
[367771115,1750925441367,-151.0,0.00017343,2]
[367771117,1750925441377,-500.0,0.00017343,2]
[367771119,1750925441386,-460.0,0.00017343,2]
[367771121,1750925441397,-460.0,0.00017343,2]
[367771123,1750925441409,-460.0,0.00017343,2]
[367771125,1750925441418,-460.0,0.00017343,2]
[367771127,1750925441427,-345.83358502,0.00017343,2]
[367771129,1750925441436,-151.0,0.00017343,2]
[367771131,1750925441446,-151.0,0.00017343,2]
[367771133,1750925441456,-483.08,0.00017343,2]
[367771135,1750925441465,-500.0,0.00017343,2]
[367771137,1750925441474,-500.0,0.00017343,2]
[367771139,1750925441484,-460.0,0.00017343,2]
[367771141,1750925441492,-460.6594643,0.00017343,2]
[367771143,1750925441502,-460.0,0.00017343,2]
[367771145,1750925441511,-460.0,0.00017343,2]
[367771146,1750925441520,-460.0,0.00017343,2]
[367771149,1750925441530,-497.59,0.00017343,2]
[367771151,1750925441541,-460.0,0.00017343,2]
[367771152,1750925441550,-460.0,0.00017343,2]
[367771154,1750925441560,-460.0,0.00017343,2]
[367771156,1750925441569,-535.75,0.00017343,2]
[367771159,1750925441579,-460.0,0.00017343,2]
[367771161,1750925441588,-507.91,0.00017343,2]
[367771162,1750925441597,-659.25,0.00017343,2]
[367771164,1750925441605,-460.0,0.00017343,2]
[367771166,1750925441615,-460.0,0.00017343,2]
[367771168,1750925441624,-460.0,0.00017343,2]
[367771170,1750925441634,-460.0,0.00017343,2]
[367771172,1750925441643,-960.97,0.00017343,2]
[367771175,1750925441653,-460.0,0.00017343,2]
[367771177,1750925441662,-460.0,0.00017343,2]
[367771178,1750925441672,-460.0,0.00017343,2]
[367771180,1750925441682,-460.0,0.00017343,2]
[367771182,1750925441691,-460.0,0.00017343,2]
[367771184,1750925441700,-460.0,0.00017343,2]
[367771186,1750925441710,-460.0,0.00017343,2]
[367771188,1750925441719,-460.0,0.00017343,2]
[367771190,1750925441728,-460.0,0.00017343,2]
[367771192,1750925441738,-460.0,0.00017343,2]
[367771194,1750925441748,-460.0,0.00017343,2]
[367771196,1750925441757,-460.0,0.00017343,2]
[367771198,1750925441767,-460.0,0.00017343,2]
[367771200,1750925441777,-478.43,0.00017343,2]
[367771202,1750925441787,-523.84,0.00017343,2]
[367771204,1750925441796,-460.0,0.00017343,2]
[367771206,1750925441806,-2507.37,0.00017343,2]
[367771208,1750925441815,-460.0,0.00017343,2]
[367771210,1750925441824,-827.13,0.00017343,2]
[367771212,1750925441834,-460.0,0.00017343,2]
[367771214,1750925441844,-460.0,0.00017343,2]
[367771216,1750925441854,-1311.52,0.00017343,2]
[367771218,1750925441863,-460.0,0.00017343,2]
[367771220,1750925441872,-781.34,0.00017343,2]
[367771222,1750925441882,-1527.0,0.0001737,2]
[367771224,1750925441891,-211.92671865,0.0001737,2]
[367771226,1750925441901,-151.0,0.0001737,2]
[367771228,1750925441911,-557.29819206,0.0001737,2]
[367771230,1750925441920,-245.0,0.0001737,2]
[367771232,1750925441929,-500.0,0.0001737,2]
[367771234,1750925441939,-500.0,0.0001737,2]
[367771236,1750925441948,-1527.0,0.00017398,2]
[367771238,1750925441958,-500.0,0.00017398,2]
[367771240,1750925441967,-598.22532481,0.00017398,2]
[367771242,1750925441976,-1527.0,0.00017425,2]
[367771244,1750925441985,-500.0,0.00017425,2]
[367771246,1750925441994,-1527.0,0.00017453,2]
[367771248,1750925442004,-500.0,0.00017453,2]
[367771250,1750925442014,-1527.0,0.0001748,2]
[367771252,1750925442023,-1527.0,0.00017507,2]
[367771254,1750925442032,-1527.0,0.00017535,2]
[367771256,1750925442041,-1527.0,0.00017562,2]
[367771258,1750925442051,-1527.0,0.0001759,2]
[367771260,1750925442060,-340.14,0.00017606,3]
[367771262,1750925442069,-170.07,0.00017606,3]
[367771264,1750925442079,-510.23,0.00017606,3]
[367771266,1750925442088,-460.0,0.00017615,2]
[367771268,1750925442097,-460.0,0.00017615,2]
[367771270,1750925442107,-460.0,0.00017615,2]
[367771272,1750925442116,-460.0,0.00017616,2]
[367771274,1750925442125,-460.0,0.00017616,2]
[367771276,1750925442135,-460.0,0.00017616,2]
[367771278,1750925442144,-460.0,0.00017616,2]
[367771280,1750925442153,-460.0,0.00017616,2]
[367771282,1750925442163,-460.0,0.00017616,2]
[367771284,1750925442172,-460.0,0.00017616,2]
[367771286,1750925442181,-460.0,0.00017616,2]
[367771288,1750925442191,-460.0,0.00017616,2]
[367771290,1750925442201,-460.0,0.00017616,2]
[367771292,1750925442210,-460.0,0.00017616,2]
[367771294,1750925442219,-214.90005467,0.00017616,2]
[367771296,1750925442228,-460.0,0.00017616,2]
[367771298,1750925442238,-460.0,0.00017616,2]
[367771300,1750925442247,-460.0,0.00017616,2]
[367771302,1750925442256,-460.0,0.00017616,2]
[367771304,1750925442266,-460.0,0.00017616,2]
[367771306,1750925442275,-366.02366314,0.00017616,2]
[367771308,1750925442285,-460.0,0.00017616,2]
[367771310,1750925442294,-460.0,0.00017616,2]
[367771312,1750925442303,-460.0,0.00017616,2]
[367771314,1750925442312,-460.0,0.00017616,2]
[367771316,1750925442321,-460.0,0.00017616,2]
[367771318,1750925442331,-345.33047048,0.00017616,2]
[367771320,1750925442341,-460.0,0.00017616,2]
[367771322,1750925442350,-460.0,0.00017616,2]
[367771324,1750925442360,-460.0,0.00017616,2]
[367771326,1750925442369,-460.0,0.00017616,2]
[367771328,1750925442379,-460.0,0.00017616,2]
[367771330,1750925442388,-460.0,0.00017616,2]
[367771332,1750925442398,-460.0,0.00017616,2]
[367771334,1750925442410,-227.99468437,0.00017616,2]
[367771336,1750925442419,-460.0,0.00017616,2]
[367771338,1750925442428,-460.0,0.00017616,2]
[367771340,1750925442437,-1567.18,0.00017616,2]
[367771342,1750925442448,-460.0,0.00017616,2]
[367771344,1750925442457,-460.0,0.00017616,2]
[367771346,1750925442466,-460.0,0.00017616,2]
[367771348,1750925442475,-460.0,0.00017616,2]
[367771350,1750925442485,-460.0,0.00017616,2]
[367771352,1750925442495,-1663.9,0.00017616,2]
[367771354,1750925442504,-460.0,0.00017616,2]
[367771356,1750925442514,-497.59,0.00017616,2]
[367771358,1750925442523,-460.0,0.00017616,2]
[367771360,1750925442533,-460.0,0.00017616,2]
[367771373,1750925442542,-460.0,0.00017616,2]
[367771377,1750925442676,-460.0,0.00017616,2]
[367771379,1750925442686,-460.0,0.00017616,2]
[367771381,1750925442695,-460.0,0.00017616,2]
[367771383,1750925442705,-460.0,0.00017616,2]
[367771385,1750925442714,-460.0,0.00017616,2]
[367771387,1750925442724,-535.75,0.00017616,2]
[367771389,1750925442733,-460.0,0.00017616,2]
[367771391,1750925442742,-460.0,0.00017616,2]
[367771393,1750925442751,-460.0,0.00017616,2]
[367771395,1750925442761,-507.91,0.00017616,2]
[367771397,1750925442771,-241.91598921,0.00017616,2]
[367771399,1750925442780,-659.25,0.00017616,2]